Cogmind - Beta 11.1 @@@ ROGUE MODE // 2022.10.26 @ 17:02:41 Player: Benkyo Result: Destroyed by as-53740 with Assembled Blade Performance ------------- Evolutions (0) 0 Regions Visited (4) 800 Robots Destroyed (24) 120 Value Destroyed (509) 509 Prototype IDs (28) 560 Alien Tech Used (0) 0 Bonus (833) 833 TOTAL SCORE: 2822 Bonus ------- No Salvage 457 Follower Combat Kills 85 Aligned with FarCom 300 Friendly Fire -9 Cogmind --------- Core Integrity 0/250 Matter 284/300 Energy 250/250 System Corruption 0% Temperature Hot (221) Movement Rolling (135) Ox3 Location -9/Mines Parts ------- > --- POWER (1) -------- Ion Engine > --- PROPULSION (2) --- Armored Wheel Armored Wheel > --- UTILITY (2) ------ Huge Storage Unit Hardened Light Armor Plating > --- WEAPON (2) ------- Particle Cannon > --- INVENTORY (25) --- Light Ion Engine Light Treads Light Treads Light Treads Light Treads Light Treads Wheel Compact Wheel Armored Wheel Armored Wheel Heat Sink Large Storage Unit Superbattery (1500) Structural Scanner Hardened Light Armor Plating Hardened Light Armor Plating Medium Laser Light EM Pulse Cannon Light EM Pulse Cannon Light EM Pulse Cannon Light EM Pulse Cannon Particle Cannon Particle Cannon Maul Peak State ------------ > --- POWER ------------ Ion Engine > --- PROPULSION ------- Armored Wheel Armored Wheel > --- UTILITY ---------- Huge Storage Unit Hardened Light Armor Plating > --- WEAPON ----------- Particle Cannon Light Cannon > --- INVENTORY -------- Light Ion Engine Light Treads Light Treads Light Treads Light Treads Light Treads Wheel Compact Wheel Armored Wheel Armored Wheel Heat Sink Large Storage Unit Superbattery Structural Scanner Hardened Light Armor Plating Hardened Light Armor Plating Medium Laser Light EM Pulse Cannon Light EM Pulse Cannon Light EM Pulse Cannon Light EM Pulse Cannon Particle Cannon Particle Cannon Particle Cannon Maul [Rating: 15] Favorites ----------- Power Ion Engine Engine Ion Engine Propulsion Light Treads Treads Light Treads Wheel Armored Wheel Utility Hardened Light Armor Plating Storage Huge Storage Unit Processor Targeting Computer Protection Hardened Light Armor Plating Weapon Particle Cannon Energy Gun Medium Laser Energy Cannon Particle Cannon Ballistic Gun Light Assault Rifle Ballistic Cannon Light Cannon Build | -11 -10 -10 -10 -9 ------- Run | Scr Mat Min Exi Min Slots Evolved . | . . . . . Power . | . . . . . Propulsion . | . . . . . Utility . | . . . . . Weapon . | . . . . . Parts Attached 18 | 6 7 1 1 3 Power 1 | 1 . . . . Engine 1 | 1 . . . . Core . | . . . . . Reactor . | . . . . . Propulsion 5 | 2 1 . . 2 Treads 3 | 2 1 . . . Leg . | . . . . . Wheel 2 | . . . . 2 Hover . | . . . . . Flight . | . . . . . Utility 5 | 1 3 . 1 . Device . | . . . . . Storage 2 | 1 1 . . . Processor 1 | . 1 . . . Hackware . | . . . . . Protection 2 | . 1 . 1 . Artifact . | . . . . . Weapon 7 | 2 3 1 . 1 Energy Gun 2 | 1 1 . . . Energy Cannon 3 | . 2 . . 1 Ballistic Gun 1 | 1 . . . . Ballistic Cannon 1 | . . 1 . . Launcher . | . . . . . Special Weapon . | . . . . . Impact Weapon . | . . . . . Slashing Weapon . | . . . . . Piercing Weapon . | . . . . . Special Melee Weapon . | . . . . . Unidentified Prototypes . | . . . . . Parts Lost 2 | . . . . 2 Power . | . . . . . Propulsion . | . . . . . Utility . | . . . . . Weapon 2 | . . . . 2 Highest Loss Streak 1 | . . . . 1 To Critical Strikes . | . . . . . Average Slot Usage (%) 99 | . 99 100 100 100 Engine 14 | . 14 14 14 14 Treads 27 | . 27 28 28 24 Storage 14 | . 14 14 14 14 Protection 13 | . 12 14 14 14 Energy Gun 1 | . 3 . . . Energy Cannon 12 | . 10 14 14 14 Ballistic Gun 6 | . 14 3 . . Ballistic Cannon 7 | . . 10 14 14 Naked Turns . | . . . . . Heaviest Build 97 | 13 95 97 97 97 Greatest Support 40 | 40 40 40 40 40 Greatest Overweight (x) 4 | 2 2 2 2 4 Average Overweight (x) 1 | . 1 2 2 2 Largest Inventory Capacity 25 | 8 25 25 25 25 Average Capacity 23 | 6 22 25 25 25 Most Carried 25 | 6 25 25 25 25 Average Carried 23 | 4 20 25 24 24 Final Capacity 25 | 8 25 25 25 25 Final Carried 25 | 6 25 25 25 24 Class Distribution -------------------- 100% | Mutant Dominant Class ---------------- Mutant | -10/Materials Mutant | -10/Mines Mutant | -10/Exiles Mutant | -9/Mines Resources | -11 -10 -10 -10 -9 ----------- Run | Scr Mat Min Exi Min Matter Collected 493 | 175 183 44 . 91 Remotely . | . . . . . Salvage Created 565 | . 301 170 . 94 Parts . | . . . . . Haulers Intercepted . | . . . . . Recyclers Shooed . | . . . . . Parts Field Recycled . | . . . . . Retrieved Matter . | . . . . . Parts Self-Destructed . | . . . . . Prevented . | . . . . . Kills | -11 -10 -10 -10 -9 ------- Run | Scr Mat Min Exi Min Combat Hostiles Destroyed 24 | . 10 7 . 7 Guns 11 | . 9 2 . . Cannons 12 | . 1 5 . 6 Classes Destroyed 5 | . 3 . . 2 Watcher 2 | . 2 . . . Swarmer 14 | . 6 4 . 4 Grunt 7 | . 4 3 . . Demolisher 1 | . . . . 1 Assembled 2 | . . . . 2 Best Kill Streak 4 | . 3 2 . 4 Combat Bots Only 4 | . 3 2 . 4 Max Kills in Single Turn 1 | . 1 1 . 1 Gunslinging . | . . . . . Exploded . | . . . . . Melee . | . . . . . Uniques/NPCs Destroyed . | . . . . . Combat | -11 -10 -10 -10 -9 -------- Run | Scr Mat Min Exi Min Damage Taken 1223 | . 354 136 . 733 Core 252 | . 50 18 . 184 Absorbed by Shields . | . . . . . Regen/Repaired (Parts) 98 | . 98 . . . Core Remaining (%) 100 | 100 . . . . Volleys Fired 68 | . 37 11 . 20 Largest 2 | . 2 2 . 2 Hottest 103 | . 88 103 . 103 Shots Fired 117 | . 62 22 . 33 Gun 58 | . 54 4 . . Cannon 59 | . 8 18 . 33 Launcher . | . . . . . Special . | . . . . . Kinetic 64 | . 33 11 . 20 Thermal 53 | . 29 11 . 13 Explosive . | . . . . . Electromagnetic . | . . . . . Robot Hit Streak 8 | . 4 8 . 6 Robot Miss Streak 4 | . 4 3 . 4 Penetration Max . | . . . . . Secondary Targets . | . . . . . Shots Hit Robots 57 | . 25 14 . 18 Core Hits 37 | . 17 10 . 10 Critical Kills 1 | . . . . 1 Critical Parts Destroyed . | . . . . . Critical Strikes 2 | . . 1 . 1 Meltdown 1 | . . . . 1 Blast 1 | . . 1 . . Melee Attacks . | . . . . . Impact . | . . . . . Slashing . | . . . . . Piercing . | . . . . . Sneak Attacks . | . . . . . Combat Hostiles . | . . . . . Follow-up Attacks . | . . . . . Damage Inflicted 988 | . 316 278 . 394 Guns 305 | . 269 36 . . Cannons 670 | . 44 242 . 384 Explosions . | . . . . . Melee . | . . . . . Ramming 13 | . 3 . . 10 Kinetic 381 | . 79 103 . 199 Thermal 594 | . 234 175 . 185 Explosive . | . . . . . Electromagnetic . | . . . . . Impact . | . . . . . Slashing . | . . . . . Piercing . | . . . . . Highest Corruption . | . . . . . Average Corruption . | . . . . . Corruption Purged . | . . . . . Corruption Blocked . | . . . . . Overload Shots . | . . . . . Overflow Damage 11 | . 2 3 . 6 Projectiles 11 | . 2 3 . 6 Explosions . | . . . . . Melee . | . . . . . Knockbacks 7 | . . 2 . 5 Impact . | . . . . . Kinetic 6 | . . 2 . 4 Secondary 1 | . . . . 1 Self-Inflicted Damage 5 | . . . . 5 Shots . | . . . . . Rammed 2 | . 1 . . 1 Targets Rammed 2 | . 1 . . 1 Kicked . | . . . . . Crushed . | . . . . . Highest Temperature 313 | . 280 202 . 313 Average Temperature 111 | . 103 71 . 154 Received Heat Transfer 93 | . 30 . . 63 Effects 5 | . 4 . . 1 Energy Bleed 1 | . . . . 1 Interference 4 | . 4 . . . Siege Activations . | . . . . . Robots Corrupted . | . . . . . Combat Hostiles . | . . . . . Parts Fried . | . . . . . Impact Corruptions . | . . . . . Robots Melted 1 | . . . . 1 Combat Hostiles 1 | . . . . 1 Parts Melted . | . . . . . Heat Transferred 1258 | . 629 296 . 333 Parts Sabotaged . | . . . . . Parts Stolen . | . . . . . Parts Stripped . | . . . . . Power Chain Reactions . | . . . . . Missiles Intercepted . | . . . . . Alert | -11 -10 -10 -10 -9 ------- Run | Scr Mat Min Exi Min Peak Influence 208 | . 208 195 . 110 Initial 27 | . . 27 . . Average 55 | . 49 64 . 47 Maximum Alert Level 1 | . 1 . . . Low Security (%) 96 | 100 92 100 . 100 Level 1 3 | . 7 . . . Level 2 . | . . . . . Level 3 . | . . . . . Level 4 . | . . . . . Level 5 . | . . . . . High Security . | . . . . . Max Security . | . . . . . Squads Dispatched 5 | . 5 . . . Investigation 4 | . 4 . . . Extermination . | . . . . . Reinforcement 1 | . 1 . . . Assault . | . . . . . Garrison . | . . . . . Intercept . | . . . . . Searches Triggered . | . . . . . Construction Impeded . | . . . . . Haulers Reinforced . | . . . . . Active Scanning Responses . | . . . . . Cargo Convoy Interrupts . | . . . . . Stealth | -11 -10 -10 -10 -9 --------- Run | Scr Mat Min Exi Min Distress Signals 1 | . . . . 1 Communications Jammed . | . . . . . Distress Signals . | . . . . . Times Spotted 38 | . 14 11 . 13 Peak Tracking Total 7 | . 3 3 . 7 Tactical Retreats 2 | . 1 . . 1 Traps | -11 -10 -10 -10 -9 ------- Run | Scr Mat Min Exi Min Traps Triggered 2 | . 2 . . . Indirectly . | . . . . . Trap Hack Attempts . | . . . . . Triggered . | . . . . . Disarmed . | . . . . . Reprogrammed . | . . . . . Reused . | . . . . . Traps Extracted . | . . . . . Installed . | . . . . . Triggered . | . . . . . Machines | -11 -10 -10 -10 -9 ---------- Run | Scr Mat Min Exi Min Machines Disabled 2 | . . 2 . . Max in Single Turn 1 | . . 1 . . Machines Sabotaged . | . . . . . Garrisons Compromised . | . . . . . Overloaded Fab Kills . | . . . . . Hacking | -11 -10 -10 -10 -9 --------- Run | Scr Mat Min Exi Min Machines Accessed 12 | . 9 1 2 . Terminals 7 | . 6 1 . . Fabricators . | . . . . . Repair Stations 1 | . 1 . . . Recycling Units 2 | . 2 . . . Scanalyzers . | . . . . . Garrison Access . | . . . . . Total Hacks 35 | . 32 1 2 . Successful 22 | . 20 . 2 . Failed 12 | . 11 1 . . Catastrophic 2 | . 1 1 . . Database Lockouts 1 | . 1 . . . Manual 18 | . 16 1 1 . Terminals 27 | . 26 1 . . Fabricators . | . . . . . Repair Stations 2 | . 2 . . . Recycling Units 4 | . 4 . . . Scanalyzers . | . . . . . Garrison Access . | . . . . . Terminal Hacks 13 | . 11 . 2 . Record 1 | . . . 1 . Robot Analysis 2 | . 2 . . . Prototype ID Bank 4 | . 4 . . . Branch Access Points 1 | . 1 . . . Locate Traps 1 | . 1 . . . Hauler Manifests 1 | . 1 . . . Zone Layout 2 | . 2 . . . EX-Prototype ID Bank 1 | . . . 1 . Fabricator Hacks . | . . . . . Repair Station Hacks 2 | . 2 . . . Scan Component 1 | . 1 . . . Repair 1 | . 1 . . . Recycling Unit Hacks 2 | . 2 . . . Retrieve Components 2 | . 2 . . . Scanalyzer . | . . . . . Garrison Access Hacks . | . . . . . Unauthorized Hacks 5 | . 5 . . . Terminals 3 | . 3 . . . Botnet 2 | . 2 . . . Operators 1 | . 1 . . . Fabricators . | . . . . . Repair Stations . | . . . . . Recycling Units 2 | . 2 . . . Tunnel 2 | . 2 . . . Scanalyzers . | . . . . . Garrison Access . | . . . . . Data Cores Recovered . | . . . . . Used . | . . . . . Hacking Detections 9 | . 8 1 . . Full Trace Events . | . . . . . Feedback Events . | . . . . . Feedback Blocked . | . . . . . Robot Schematics Acquired . | . . . . . Robots Built . | . . . . . Authchips . | . . . . . Time . | . . . . . Total Robot Build Rating . | . . . . . Part Schematics Acquired . | . . . . . Parts Built . | . . . . . Authchips . | . . . . . Time . | . . . . . Total Part Build Rating . | . . . . . Parts Repaired 1 | . 1 . . . Time 13 | . 13 . . . Parts Recycled . | . . . . . Recycled Matter . | . . . . . Retrieved Matter . | . . . . . Retrieved Components 3 | . 3 . . . Parts Scanalyzed . | . . . . . Part Schematics Acquired . | . . . . . Parts Damaged . | . . . . . Bothacking | -11 -10 -10 -10 -9 ------------ Run | Scr Mat Min Exi Min Used RIF Installer . | . . . . . Robots Hacked . | . . . . . Non-combat . | . . . . . Combat . | . . . . . Robot Hacks Applied . | . . . . . Relay Couplers Released . | . . . . . Fabnet Peak Effective % . | . . . . . Robots Rewired . | . . . . . Allies Hacked . | . . . . . Hacks Repelled . | . . . . . Allies | -11 -10 -10 -10 -9 -------- Run | Scr Mat Min Exi Min Total Allies 3 | . . 3 . . Largest Group 2 | . . 2 1 . Highest-Rated Group 51 | . . 51 28 . Highest-Rated Ally 31 | . . 31 28 . Total Orders . | . . . . . Ally Attacks 32 | . . 32 . . Total Damage 462 | . . 462 . . Kills 8 | . . 8 . . Allies Corrupted . | . . . . . Allies Melted . | . . . . . Intel | -11 -10 -10 -10 -9 ------- Run | Scr Mat Min Exi Min Robot Analysis Total 2 | . 2 . . . Derelict Logs Recovered 3 | . . 2 . 1 Drone Launches . | . . . . . Drone Recoveries . | . . . . . Exploration | -11 -10 -10 -10 -9 ------------- Run | Scr Mat Min Exi Min Turns Passed 5135 | 54 1959 1680 1059 383 Spaces Moved 1619 | 35 642 504 331 107 Core 18 | 18 . . . . Treads 1585 | 17 642 504 331 91 Legs . | . . . . . Wheels 16 | . . . . 16 Hover . | . . . . . Flight . | . . . . . Fastest Speed 50 | 50 160 320 320 135 Average Speed 298 | 106 280 320 320 294 Slowest Speed 320 | 160 320 320 320 320 Overloaded Moves . | . . . . . Propulsion Burnouts . | . . . . . Robots Hopped . | . . . . . Cave-ins Triggered . | . . . . . Exploration Rate (%) 58 | 3 91 98 70 29 Regions Visited 4 Branch Regions 3 Pre-discovered Areas 4 | . 2 1 1 . Known Exits Taken 2 | . 1 . 1 . Unknown Exits Taken 2 | 1 . 1 . . Scrap Searched 2 | . . 2 . . Spaces Dug . | . . . . . Terrain Destroyed . | . . . . . Melee . | . . . . . Projectile . | . . . . . AOE . | . . . . . Terrain Rammed . | . . . . . Walls Destroyed . | . . . . . Machines Disabled . | . . . . . Actions | -11 -10 -10 -10 -9 --------- Run | Scr Mat Min Exi Min Total 1821 | 50 745 552 333 141 Wait 80 | 2 32 36 . 10 Move 1615 | 34 641 503 330 107 Hop . | . . . . . Pick Up 31 | 8 22 . 1 . Fast Attach 8 | 4 3 1 . . Attach 3 | 2 . . . 1 Detach . | . . . . . Swap 7 | . 4 . 1 2 Drop 7 | . 5 1 1 . Fire 68 | . 37 11 . 20 Melee . | . . . . . Ram 1 | . . . . 1 Kick . | . . . . . Crush 1 | . 1 . . . Escape Stasis . | . . . . . Rewire . | . . . . . Trap . | . . . . . Miscellaneous . | . . . . . Route ------- -11/Scrapyard -10/Materials (discovered 3 exits: [*Mat x2] / *Min) -10/Mines (discovered 3 exits: [*Mat x2] / *Exi) -10/Exiles (discovered 2 exits: *Min x2) -9/Mines (discovered 1 exit: [*Mat]) History --------- Turn | Location | Event 10 | -11/Scrapyard | Discovered new exit (range 15) 55 | -11/Scrapyard | Entered Materials 243 | -10/Materials | Discovered new exit (range 12) 298 | -10/Materials | Central database locked down 298 | -10/Materials | Identified exit to Mines 300 | -10/Materials | Build established: Mutant 897 | -10/Materials | Discovered new exit (range 6) 1711 | -10/Materials | Repaired Lgt. Treads 2014 | -10/Materials | Entered Mines 2114 | -10/Mines | Learned location of 1 exit from Materials 2200 | -10/Mines | Found a hidden stash of uninstalled traps 2398 | -10/Mines | Deemed a non-threat by the Exiles lab entrance 2398 | -10/Mines | Discovered new exit (range 5) 2470 | -10/Mines | Discovered new exit (range 8) 3084 | -10/Mines | Escorted by a lone wolf Derelict 3289 | -10/Mines | Discovered new exit (range 5) 3694 | -10/Mines | Entered Exiles 3694 | -10/Exiles | Accompanied by 1 ally 3695 | -10/Exiles | Identified exit to Mines 3771 | -10/Exiles | Met 8R-AWN 3826 | -10/Exiles | Met EX-HEX 3950 | -10/Exiles | Met EX-DEC 3966 | -10/Exiles | Learned location of Zion (-7) 4296 | -10/Exiles | Met EX-BIN 4344 | -10/Exiles | Aligned with FarCom system 4347 | -10/Exiles | Given EX-Vault access code 4421 | -10/Exiles | Opened EX-Vault 4439 | -10/Exiles | Found Superbattery 4501 | -10/Exiles | Warned to stay clear of 0b10 Research branches 4753 | -10/Exiles | Left Exiles lab with Superbattery 4753 | -10/Exiles | Entered Mines 4757 | -9/Mines | Discovered new exit (range 12) 4982 | -9/Mines | Learned Materials security intel 5041 | -9/Mines | Assembled infested the area 5114 | -9/Mines | Core integrity fell below 50% 5130 | -9/Mines | Core integrity fell below 20% 5136 | -9/Mines | Destroyed by as-53740 with Assembled Blade Last Messages --------------- 05094_ The unstable cave ceiling collapses. 05095_ K-01 Serf destroyed. 05097_ D-53 Grenadier destroyed. 05099_ The unstable cave ceiling collapses. 05101_ Acquired 5 matter. 05102_ The unstable cave ceiling collapses. 05103_ Acquired 9 matter. 05105_ The unstable cave ceiling collapses. 05107_ T-07 Excavator sends out distress signal. 05110_ T-07 Excavator destroyed. 05111_ The unstable cave ceiling collapses. 05112_ K-01 Serf destroyed. 05117_ Overheating: Energy bleed (-50). 05117_ Slammed into G-47 Trooper. 05121_ G-34 Mercenary destroyed. 05122_ G-47 Trooper destroyed. 05131_ as-28481 destroyed. 05134_ as-78004 destroyed. 05134_ as-60678 knocked back. 05134_ Lgt. Cannon destroyed. Map ----- +----------------------------------------------------+ | ????????????????????????????????????????????? | | ????????????????????????????????????????????? | | ????????????????????????????????????????????? | | ????????????????????????????????????????????? | | ????????????????????????????????????????????? | | ???????#####?###????????????????????????????? | | ???????# ? ????????????????????????????? | | ???????# ?? ????????????????????????????? | | ???????# #??# #????????????????????????????? | | ???????# #??# #????????????????????????????? | | ??####?# #??# #??????????? ????????????????? | | ??? ### ##?# #??????????? ???????????????? | | ???# ## ### ##?????????? ???????????????? | | #### ## ####?????? ???????????????? | | ##????? ????????????????? | | ######## #????? ?######???????? | | ???????## #????? """ #???????? | | ????????##### ##????? """ ????????? | | ????????????## #?????? """ ?????????? | | ?????????????#### #????## ???????????? | | ????????????????# #???## #?????????????? | | ????????????????# ##### #??????????????? | | ??????#??####???# #??????????????? | | ??????# ## ####% %% %% #??????????????? | | ??????# % # ####%aa ##??????????????? | | ??????# #??##@ #???????????????? | | ?????### # #???# #???????????????? | | ?????# % #???# #???????????????? | | ?????# # # # ####??? ##???????????????? | | ???????## # # #???? ##????????????????? | | ????????### # #???? ##?????????????????? | | ??????????#### # ###???? ???????????????????? | | ?????????????#####????? ???????????????????? | | ??????????????????????? ???????????????????? | | ??????????????????????? ???????????????????? | | ??????????????????????? ???????????????????? | | ??????????????????????# ???????????????????? | | ??????????????????????##????????????????????? | | ????????????????????????????????????????????? | | ????????????????????????????????????????????? | | ????????????????????????????????????????????? | | ????????????????????????????????????????????? | | ????????????????????????????????????????????? | | ????????????????????????????????????????????? | | ????????????????????????????????????????????? | | ????????????????????????????????????????????? | | ????????????????????????????????????????????? | | ????????????????????????????????????????????? | | ????????????????????????????????????????????? | | ????????????????????????????????????????????? | +----------------------------------------------------+ Best States ------------- Heat Dissipation 25 Energy Generation 10 Energy Capacity 250 Matter Stores 300 Matter Capacity 300 Sight Range 16 Terrain Scan Density 10 Armor Coverage 150 Evasion (%) 50 Targeting Accuracy 5 Recoil Reduction 2 Item Schematics ----------------- None Robot Schematics ------------------ None Fabricated ------------ Nothing Alien Tech Used ----------------- None Achievements -------------- None Challenges ------------ No Salvage Game ------ Seed EnhancedHelicalSubcomponent Manual? 0 Play Time 00:24:18 Cumulative 429.1 hours Start 2022.10.26 @ 14:09:23 End 2022.10.26 @ 17:02:41 Sessions 3 Manual Loads 0 Difficulty Rogue Special Mode None Game No. 76 Rogue 69 Adventurer 1 Explorer 6 Win Type - Total 32 Types 8/3/12/1/1/1/4/1/1 Lore% 92 Gallery% 92 Achievement% 82 Wizard Run 0 Options --------- ASCII 0 Keyboard 0 Movement Mouse Keybinds 0 Fullscreen 1 Font 18/SmallcapsGlow Map View 76x50 Tactical HUD 1 Map Filters NONE Filters NONE Steam 1 RUN: de1468da-22e5-4eb9-ac6e-5b0994492cf5